fUSD/lending_fUSD_20260506
["ID","MTS","AMOUNT","RATE_DAILY","PERIOD"]
[421728551,1778071843000,-287.0,0.00040486,2]
[421728546,1778071843000,-400.0,0.0004046,2]
[421728553,1778071843000,-246.0,0.00040486,2]
[421728548,1778071843000,-400.0,0.0004046,2]
[421728552,1778071843000,-150.0,0.00040486,2]
[421728547,1778071843000,-400.0,0.0004046,2]
[421728545,1778071843000,-400.0,0.0004046,2]
[421728482,1778071843000,-1352.0,0.00040273,2]
[421728514,1778071843000,-159.52,0.00040394,120]
[421728515,1778071843000,-2446.978,0.000404,60]
[421728550,1778071843000,-300.0,0.00040468,2]
[421728508,1778071843000,-237.14,0.00040327,90]
[421728517,1778071843000,-2446.98,0.000404,60]
[421728493,1778071843000,-1100.0,0.00040278,120]
[421728492,1778071843000,-1100.0,0.00040278,120]
[421728484,1778071843000,-3536.0,0.00040273,2]
[421728494,1778071843000,-973.0,0.00040278,120]
[421728486,1778071843000,-1221.0,0.00040273,2]
[421728491,1778071843000,-351.70859363,0.00040278,120]
[421728488,1778071843000,-157.99482979,0.00040278,120]
[421728490,1778071843000,-342.65762743,0.00040278,120]
[421728496,1778071843000,-893.36,0.0004029,60]
[421728495,1778071843000,-156.48951136,0.0004029,120]
[421728497,1778071843000,-299.52,0.0004029,60]
[421728499,1778071843000,-5992.48,0.0004029,60]
[421728485,1778071843000,-1268.0,0.00040273,2]
[421728500,1778071843000,-283.0,0.00040295,2]
[421728512,1778071843000,-258.24,0.00040394,120]
[421728511,1778071843000,-288.06,0.00040394,120]
[421728507,1778071843000,-219.8,0.00040327,90]
[421728510,1778071843000,-257.55,0.00040363,120]
[421728498,1778071843000,-786.05,0.0004029,60]
[421728549,1778071843000,-489.0,0.0004046,2]
[421728509,1778071843000,-690.88,0.00040347,120]
[421728504,1778071843000,-888.96906758,0.000403,30]
[421728505,1778071843000,-888.96906758,0.000403,30]
[421728502,1778071843000,-233.0,0.00040295,2]
[421728501,1778071843000,-150.0,0.00040295,2]
[421728503,1778071843000,-888.96906758,0.000403,30]
[421728506,1778071843000,-656.73924934,0.00040316,2]
[421728604,1778071844000,-800.85,0.000408,120]
[421728603,1778071844000,-667.14,0.000408,120]
[421728593,1778071844000,-1637.94651918,0.000407,2]
[421728592,1778071844000,-10553.56668809,0.000407,12]
[421728584,1778071844000,-690.88,0.00040647,120]
[421728588,1778071844000,-350.0,0.00040689,120]
[421728589,1778071844000,-350.0,0.00040689,120]
[421728586,1778071844000,-310.0,0.00040688,81]
[421728587,1778071844000,-156.48951136,0.00040689,120]
[421728585,1778071844000,-170.0,0.00040647,120]
[421728590,1778071844000,-304.0,0.00040689,120]
[421728600,1778071844000,-580.39,0.000408,120]
[421728602,1778071844000,-33588.11,0.000408,7]
[421728595,1778071844000,-690.88,0.00040747,120]
[421728598,1778071844000,-9049.66220945,0.000408,60]
[421728594,1778071844000,-656.73924934,0.00040731,2]
[421728599,1778071844000,-286.19,0.000408,120]
[421728596,1778071844000,-176.3,0.0004075,120]
[421728601,1778071844000,-1468.02,0.000408,120]
[421728606,1778071844000,-495.81,0.000408,120]
[421728616,1778071844000,-4197.12650728,0.000409,30]
[421728605,1778071844000,-2881.61,0.000408,120]
[421728607,1778071844000,-442.45,0.00040811,90]
[421728609,1778071844000,-421.93,0.00040811,90]
[421728583,1778071844000,-35818.9503227,0.00040637,2]
[421728614,1778071844000,-690.88,0.00040847,120]
[421728597,1778071844000,-152.52386965,0.00040773,120]
[421728591,1778071844000,-155.57,0.0004069,120]
[421728569,1778071844000,-157.99482979,0.00040552,120]
[421728582,1778071844000,-2488.3284269,0.00040637,2]
[421728608,1778071844000,-368.44,0.00040811,90]
[421728554,1778071844000,-361.72528501,0.00040499,14]
[421728557,1778071844000,-2523.0,0.000405,120]
[421728560,1778071844000,-150.0,0.00040531,90]
[421728559,1778071844000,-50000.0,0.000405,61]
[421728568,1778071844000,-1099.5765,0.0004055,4]
[421728558,1778071844000,-33588.11,0.000405,7]
[421728567,1778071844000,-1247.3476,0.0004055,4]
[421728556,1778071844000,-11401.42,0.000405,120]
[421728561,1778071844000,-300.0,0.00040532,10]
[421728562,1778071844000,-139747.381454,0.00040533,2]
[421728566,1778071844000,-10000.0,0.0004055,4]
[421728580,1778071844000,-200.0,0.00040631,120]
[421728563,1778071844000,-2000.0,0.00040544,120]
[421728565,1778071844000,-2000.0,0.0004055,4]
[421728573,1778071844000,-500.0,0.00040573,5]
[421728572,1778071844000,-500.0,0.00040573,5]
[421728570,1778071844000,-342.65762743,0.00040552,120]
[421728574,1778071844000,-500.0,0.00040573,5]
[421728571,1778071844000,-351.70859363,0.00040552,120]
[421728575,1778071844000,-500.0,0.00040573,5]
[421728578,1778071844000,-266.0,0.00040605,2]
[421728579,1778071844000,-9611.3022105,0.00040607,2]
[421728576,1778071844000,-500.0,0.00040573,5]
[421728577,1778071844000,-219.0,0.000406,120]
[421728581,1778071844000,-261.0,0.00040631,120]
[421728564,1778071844000,-690.88,0.00040547,120]
[421728611,1778071844000,-157.99482979,0.00040826,120]
[421728555,1778071844000,-156.79057218,0.000405,120]
[421728612,1778071844000,-342.65762743,0.00040826,120]
[421728644,1778071844000,-500.0,0.00041,45]
[421728647,1778071844000,-2500.0,0.00041,120]
[421728643,1778071844000,-500.0,0.00041,45]
[421728645,1778071844000,-556.0,0.00041,90]
[421728650,1778071844000,-500.0,0.00041,45]
[421728651,1778071844000,-500.0,0.00041,45]
[421728661,1778071844000,-500.0,0.00041,45]
[421728662,1778071844000,-500.0,0.00041,45]
[421728652,1778071844000,-500.0,0.00041,45]
[421728654,1778071844000,-500.0,0.00041,45]
[421728653,1778071844000,-500.0,0.00041,45]
[421728656,1778071844000,-500.0,0.00041,45]
[421728658,1778071844000,-500.0,0.00041,45]
[421728660,1778071844000,-500.0,0.00041,45]
[421728657,1778071844000,-500.0,0.00041,45]
[421728659,1778071844000,-500.0,0.00041,45]
[421728655,1778071844000,-500.0,0.00041,45]
[421728663,1778071844000,-500.0,0.00041,45]
[421728667,1778071844000,-500.0,0.00041,45]
[421728666,1778071844000,-500.0,0.00041,45]
[421728665,1778071844000,-500.0,0.00041,45]
[421728664,1778071844000,-500.0,0.00041,45]
[421728670,1778071844000,-500.0,0.00041,45]
[421728669,1778071844000,-500.0,0.00041,45]
[421728668,1778071844000,-500.0,0.00041,45]
[421728672,1778071844000,-500.0,0.00041,45]
[421728671,1778071844000,-500.0,0.00041,45]
[421728642,1778071844000,-500.0,0.00041,45]
[421728646,1778071844000,-1127.64890688,0.00041,90]
[421728610,1778071844000,-166.95,0.00040811,90]
[421728649,1778071844000,-500.0,0.00041,45]
[421728613,1778071844000,-351.70859363,0.00040826,120]
[421728615,1778071844000,-22574.93,0.000409,120]
[421728617,1778071844000,-157.8,0.000409,30]
[421728619,1778071844000,-163.0,0.00040914,11]
[421728620,1778071844000,-300.0,0.00040931,10]
[421728618,1778071844000,-1700.0,0.000409,14]
[421728623,1778071844000,-690.88,0.00040947,120]
[421728641,1778071844000,-500.0,0.00041,45]
[421728621,1778071844000,-233.62423754,0.00040932,7]
[421728622,1778071844000,-327429.78,0.00040939,30]
[421728624,1778071844000,-300.0,0.00040949,10]
[421728635,1778071844000,-161.0,0.00040998,11]
[421728636,1778071844000,-50000.0,0.00041,56]
[421728625,1778071844000,-335109.0,0.0004095,60]
[421728626,1778071844000,-1088.10210975,0.0004095,30]
[421728627,1778071844000,-832.36167785,0.0004095,30]
[421728639,1778071844000,-500.0,0.00041,45]
[421728640,1778071844000,-500.0,0.00041,45]
[421728637,1778071844000,-500.0,0.00041,45]
[421728638,1778071844000,-500.0,0.00041,45]
[421728632,1778071844000,-184.59,0.0004099,120]
[421728648,1778071844000,-125897.09,0.00041,60]
[421728633,1778071844000,-213.0,0.0004099,120]
[421728631,1778071844000,-2000.0,0.00040985,2]
[421728628,1778071844000,-37628.45398669,0.0004095,30]
[421728629,1778071844000,-150.0,0.00040973,5]
[421728630,1778071844000,-5363.13098,0.00040977,30]
[421728634,1778071844000,-163.0,0.00040994,11]
[421728716,1778071845000,-170.96426631,0.00041089,2]
[421728714,1778071845000,-156.48951136,0.00041088,120]
[421728713,1778071845000,-587.85069359,0.00041083,2]
[421728707,1778071845000,-1142.1,0.00041041,120]
[421728709,1778071845000,-690.88,0.00041047,120]
[421728704,1778071845000,-500.0,0.0004104,21]
[421728708,1778071845000,-250.0,0.00041041,100]
[421728706,1778071845000,-1200.0,0.0004104,21]
[421728703,1778071845000,-1581.0,0.00041033,11]
[421728702,1778071845000,-2305.0,0.00041022,11]
[421728710,1778071845000,-1094.65804152,0.0004108,2]
[421728724,1778071845000,-20000.0,0.00041096,120]
[421728735,1778071845000,-151.0,0.00041096,120]
[421728715,1778071845000,-1149.39094359,0.00041088,2]
[421728718,1778071845000,-630.78690775,0.00041091,2]
[421728719,1778071845000,-500.0,0.00041095,120]
[421728721,1778071845000,-273.0,0.00041096,30]
[421728722,1778071845000,-187.0,0.00041096,30]
[421728720,1778071845000,-200.0,0.00041096,30]
[421728723,1778071845000,-198.0,0.00041096,30]
[421728726,1778071845000,-30213.0,0.00041096,120]
[421728725,1778071845000,-20000.0,0.00041096,120]
[421728728,1778071845000,-151.0,0.00041096,120]
[421728727,1778071845000,-151.0,0.00041096,120]
[421728736,1778071845000,-267.852296,0.00041096,120]
[421728700,1778071845000,-160.0,0.00041,76]
[421728717,1778071845000,-155.57,0.0004109,120]
[421728705,1778071845000,-500.0,0.0004104,21]
[421728683,1778071845000,-500.0,0.00041,45]
[421728701,1778071845000,-163.0,0.00041006,11]
[421728732,1778071845000,-151.0,0.00041096,120]
[421728675,1778071845000,-500.0,0.00041,45]
[421728676,1778071845000,-500.0,0.00041,45]
[421728673,1778071845000,-500.0,0.00041,45]
[421728686,1778071845000,-275.64036147,0.00041,30]
[421728678,1778071845000,-500.0,0.00041,45]
[421728677,1778071845000,-500.0,0.00041,45]
[421728687,1778071845000,-413.48352252,0.00041,120]
[421728680,1778071845000,-500.0,0.00041,45]
[421728679,1778071845000,-500.0,0.00041,45]
[421728685,1778071845000,-183.0,0.00041,30]
[421728682,1778071845000,-500.0,0.00041,45]
[421728684,1778071845000,-500.0,0.00041,45]
[421728681,1778071845000,-500.0,0.00041,45]
[421728688,1778071845000,-959.76018642,0.00041,120]
[421728689,1778071845000,-6400.0,0.00041,120]
[421728692,1778071845000,-3000.0,0.00041,120]
[421728690,1778071845000,-105499.22244276,0.00041,120]
[421728691,1778071845000,-183.0,0.00041,2]
[421728695,1778071845000,-3000.0,0.00041,30]
[421728697,1778071845000,-5000.0,0.00041,120]
[421728698,1778071845000,-5000.0,0.00041,120]
[421728696,1778071845000,-5000.0,0.00041,120]
[421728693,1778071845000,-3000.0,0.00041,30]
[421728694,1778071845000,-3000.0,0.00041,30]
[421728699,1778071845000,-160.0,0.00041,76]
[421728712,1778071845000,-626.86897664,0.00041083,2]
[421728711,1778071845000,-164.55310634,0.00041083,2]
[421728674,1778071845000,-500.0,0.00041,45]
[421728730,1778071845000,-151.0,0.00041096,120]
[421728733,1778071845000,-151.0,0.00041096,120]
[421728769,1778071845000,-151.0,0.00041096,120]
[421728772,1778071845000,-151.0,0.00041096,120]
[421728765,1778071845000,-151.0,0.00041096,120]
[421728774,1778071845000,-269.120346,0.00041096,120]
[421728766,1778071845000,-151.0,0.00041096,120]
[421728775,1778071845000,-269.120346,0.00041096,120]
[421728771,1778071845000,-426.16306621,0.00041096,2]
[421728767,1778071845000,-151.0,0.00041096,120]
[421728776,1778071845000,-269.120346,0.00041096,120]
[421728773,1778071845000,-269.120346,0.00041096,120]
[421728770,1778071845000,-236.646028,0.00041096,120]
[421728783,1778071845000,-269.120346,0.00041096,120]
[421728768,1778071845000,-151.0,0.00041096,120]
[421728784,1778071845000,-269.120346,0.00041096,120]
[421728777,1778071845000,-269.120346,0.00041096,120]
[421728780,1778071845000,-269.120346,0.00041096,120]
[421728782,1778071845000,-269.120346,0.00041096,120]
[421728786,1778071845000,-269.120346,0.00041096,120]
[421728785,1778071845000,-269.120346,0.00041096,120]
[421728781,1778071845000,-269.120346,0.00041096,120]
[421728787,1778071845000,-269.120346,0.00041096,120]
[421728788,1778071845000,-269.120346,0.00041096,120]
[421728790,1778071845000,-269.120346,0.00041096,120]
[421728789,1778071845000,-269.120346,0.00041096,120]
[421728791,1778071845000,-269.120346,0.00041096,120]
[421728729,1778071845000,-151.0,0.00041096,120]
[421728779,1778071845000,-269.120346,0.00041096,120]
[421728764,1778071845000,-169.13718,0.00041096,120]
[421728778,1778071845000,-269.120346,0.00041096,120]
[421728760,1778071845000,-151.0,0.00041096,120]
[421728758,1778071845000,-478.785811,0.00041096,120]
[421728731,1778071845000,-151.0,0.00041096,120]
[421728737,1778071845000,-151.0,0.00041096,120]
[421728738,1778071845000,-151.0,0.00041096,120]
[421728739,1778071845000,-151.0,0.00041096,120]
[421728748,1778071845000,-478.785811,0.00041096,120]
[421728743,1778071845000,-478.785811,0.00041096,120]
[421728749,1778071845000,-478.785811,0.00041096,120]
[421728740,1778071845000,-478.785811,0.00041096,120]
[421728741,1778071845000,-478.785811,0.00041096,120]
[421728746,1778071845000,-478.785811,0.00041096,120]
[421728742,1778071845000,-478.785811,0.00041096,120]
[421728744,1778071845000,-478.785811,0.00041096,120]
[421728747,1778071845000,-478.785811,0.00041096,120]
[421728734,1778071845000,-151.0,0.00041096,120]
[421728755,1778071845000,-478.785811,0.00041096,120]
[421728745,1778071845000,-478.785811,0.00041096,120]
[421728757,1778071845000,-478.785811,0.00041096,120]
[421728756,1778071845000,-478.785811,0.00041096,120]
[421728754,1778071845000,-478.785811,0.00041096,120]
[421728752,1778071845000,-478.785811,0.00041096,120]
[421728759,1778071845000,-478.785815,0.00041096,120]
[421728753,1778071845000,-478.785811,0.00041096,120]
[421728762,1778071845000,-151.0,0.00041096,120]
[421728763,1778071845000,-151.0,0.00041096,120]
[421728761,1778071845000,-151.000024,0.00041096,120]
[421728751,1778071845000,-478.785811,0.00041096,120]
[421728750,1778071845000,-478.785811,0.00041096,120]
[421728828,1778071846000,-1499.85329,0.00041096,30]
[421728825,1778071846000,-1499.85329,0.00041096,30]
[421728824,1778071846000,-1499.85329,0.00041096,30]
[421728823,1778071846000,-1499.85329,0.00041096,30]
[421728827,1778071846000,-1499.85329,0.00041096,30]
[421728820,1778071846000,-300.0,0.00041096,120]
[421728826,1778071846000,-1499.85329,0.00041096,30]
[421728830,1778071846000,-1499.85329,0.00041096,30]
[421728821,1778071846000,-300.0,0.00041096,120]
[421728831,1778071846000,-1499.85329,0.00041096,30]
[421728833,1778071846000,-1499.85329,0.00041096,30]
[421728829,1778071846000,-1499.85329,0.00041096,30]
[421728832,1778071846000,-1499.85329,0.00041096,30]
[421728840,1778071846000,-1499.85329,0.00041096,30]
[421728835,1778071846000,-1499.85329,0.00041096,30]
[421728836,1778071846000,-1499.85329,0.00041096,30]
[421728842,1778071846000,-1499.85328,0.00041096,30]
[421728834,1778071846000,-1499.85329,0.00041096,30]
[421728841,1778071846000,-1499.85329,0.00041096,30]
[421728837,1778071846000,-1499.85329,0.00041096,30]
[421728839,1778071846000,-1499.85329,0.00041096,30]
[421728838,1778071846000,-1499.85329,0.00041096,30]
[421728844,1778071846000,-151.0,0.00041096,120]
[421728852,1778071846000,-151.0,0.00041096,120]
[421728853,1778071846000,-151.0,0.00041096,120]
[421728854,1778071846000,-151.0,0.00041096,120]
[421728843,1778071846000,-151.0,0.00041096,120]
[421728822,1778071846000,-299.94,0.00041096,120]
[421728792,1778071846000,-269.120343,0.00041096,120]
[421728817,1778071846000,-300.0,0.00041096,120]
[421728795,1778071846000,-878.136391,0.00041096,60]
[421728793,1778071846000,-878.136391,0.00041096,60]
[421728794,1778071846000,-878.136391,0.00041096,60]
[421728796,1778071846000,-878.136391,0.00041096,60]
[421728798,1778071846000,-878.136391,0.00041096,60]
[421728799,1778071846000,-878.136391,0.00041096,60]
[421728801,1778071846000,-878.136391,0.00041096,60]
[421728800,1778071846000,-878.136391,0.00041096,60]
[421728797,1778071846000,-878.136391,0.00041096,60]
[421728807,1778071846000,-878.136391,0.00041096,60]
[421728804,1778071846000,-878.136391,0.00041096,60]
[421728803,1778071846000,-878.136391,0.00041096,60]
[421728819,1778071846000,-300.0,0.00041096,120]
[421728806,1778071846000,-878.136391,0.00041096,60]
[421728805,1778071846000,-878.136391,0.00041096,60]
[421728809,1778071846000,-878.136391,0.00041096,60]
[421728808,1778071846000,-878.136391,0.00041096,60]
[421728810,1778071846000,-878.136391,0.00041096,60]
[421728811,1778071846000,-878.136391,0.00041096,60]
[421728813,1778071846000,-300.0,0.00041096,120]
[421728816,1778071846000,-300.0,0.00041096,120]
[421728818,1778071846000,-300.0,0.00041096,120]
[421728845,1778071846000,-151.0,0.00041096,120]
[421728812,1778071846000,-878.136388,0.00041096,60]
[421728815,1778071846000,-300.0,0.00041096,120]
[421728814,1778071846000,-300.0,0.00041096,120]
[421728802,1778071846000,-878.136391,0.00041096,60]
[421728848,1778071846000,-151.0,0.00041096,120]
[421728887,1778071846000,-243.239404,0.00041096,120]
[421728849,1778071846000,-151.0,0.00041096,120]
[421728883,1778071846000,-1141.400099,0.00041096,120]
[421728882,1778071846000,-1141.400099,0.00041096,120]
[421728884,1778071846000,-1141.400103,0.00041096,120]
[421728888,1778071846000,-158.213841,0.00041096,120]
[421728890,1778071846000,-158.213841,0.00041096,120]
[421728885,1778071846000,-151.0,0.00041096,120]
[421728886,1778071846000,-204.373399,0.00041096,120]
[421728889,1778071846000,-158.213841,0.00041096,120]
[421728892,1778071846000,-158.213841,0.00041096,120]
[421728894,1778071846000,-158.213841,0.00041096,120]
[421728904,1778071846000,-158.213841,0.00041096,120]
[421728895,1778071846000,-158.213841,0.00041096,120]
[421728891,1778071846000,-158.213841,0.00041096,120]
[421728893,1778071846000,-158.213841,0.00041096,120]
[421728898,1778071846000,-158.213841,0.00041096,120]
[421728899,1778071846000,-158.213841,0.00041096,120]
[421728902,1778071846000,-158.213841,0.00041096,120]
[421728897,1778071846000,-158.213841,0.00041096,120]
[421728901,1778071846000,-158.213841,0.00041096,120]
[421728900,1778071846000,-158.213841,0.00041096,120]
[421728906,1778071846000,-158.213841,0.00041096,120]
[421728905,1778071846000,-158.213841,0.00041096,120]
[421728907,1778071846000,-158.213849,0.00041096,120]
[421728909,1778071846000,-233.209878,0.00041096,120]
[421728908,1778071846000,-233.209878,0.00041096,120]
[421728847,1778071846000,-151.0,0.00041096,120]
[421728903,1778071846000,-158.213841,0.00041096,120]
[421728880,1778071846000,-1141.400099,0.00041096,120]
[421728896,1778071846000,-158.213841,0.00041096,120]
[421728877,1778071846000,-1141.400099,0.00041096,120]
[421728846,1778071846000,-151.0,0.00041096,120]
[421728881,1778071846000,-1141.400099,0.00041096,120]
[421728851,1778071846000,-151.0,0.00041096,120]
[421728850,1778071846000,-151.0,0.00041096,120]
[421728859,1778071846000,-151.0,0.00041096,120]
[421728867,1778071846000,-1141.400099,0.00041096,120]
[421728866,1778071846000,-1141.400099,0.00041096,120]
[421728855,1778071846000,-151.0,0.00041096,120]
[421728857,1778071846000,-151.0,0.00041096,120]
[421728865,1778071846000,-1141.400099,0.00041096,120]
[421728856,1778071846000,-203.928743,0.00041096,120]
[421728860,1778071846000,-151.0,0.00041096,120]
[421728861,1778071846000,-151.0,0.00041096,120]
[421728863,1778071846000,-151.0,0.00041096,120]
[421728864,1778071846000,-223.962106,0.00041096,120]
[421728875,1778071846000,-1141.400099,0.00041096,120]
[421728858,1778071846000,-151.0,0.00041096,120]
[421728878,1778071846000,-1141.400099,0.00041096,120]
[421728874,1778071846000,-1141.400099,0.00041096,120]
[421728870,1778071846000,-1141.400099,0.00041096,120]
[421728879,1778071846000,-1141.400099,0.00041096,120]
[421728876,1778071846000,-1141.400099,0.00041096,120]
[421728873,1778071846000,-1141.400099,0.00041096,120]
[421728871,1778071846000,-1141.400099,0.00041096,120]
[421728869,1778071846000,-1141.400099,0.00041096,120]
[421728868,1778071846000,-1141.400099,0.00041096,120]
[421728872,1778071846000,-1141.400099,0.00041096,120]
[421728947,1778071847000,-210.183774,0.00041096,120]
[421728944,1778071847000,-210.183774,0.00041096,120]
[421728950,1778071847000,-2000.0,0.00041096,120]
[421728953,1778071847000,-809.0,0.00041096,60]
[421728951,1778071847000,-623.0,0.00041096,120]
[421728949,1778071847000,-210.183774,0.00041096,120]
[421728943,1778071847000,-210.183774,0.00041096,120]
[421728941,1778071847000,-210.183774,0.00041096,120]
[421728942,1778071847000,-210.183774,0.00041096,120]
[421728946,1778071847000,-210.183774,0.00041096,120]
[421728952,1778071847000,-809.0,0.00041096,60]
[421728945,1778071847000,-210.183774,0.00041096,120]
[421728968,1778071847000,-809.0,0.00041096,60]
[421728965,1778071847000,-809.0,0.00041096,60]
[421728956,1778071847000,-809.0,0.00041096,60]
[421728958,1778071847000,-809.0,0.00041096,60]
[421728957,1778071847000,-809.0,0.00041096,60]
[421728954,1778071847000,-809.0,0.00041096,60]
[421728961,1778071847000,-809.0,0.00041096,60]
[421728964,1778071847000,-809.0,0.00041096,60]
[421728963,1778071847000,-809.0,0.00041096,60]
[421728959,1778071847000,-809.0,0.00041096,60]
[421728960,1778071847000,-809.0,0.00041096,60]
[421728962,1778071847000,-809.0,0.00041096,60]
[421728932,1778071847000,-210.183774,0.00041096,120]
[421728955,1778071847000,-809.0,0.00041096,60]
[421728928,1778071847000,-151.0,0.00041096,120]
[421728913,1778071847000,-233.209878,0.00041096,120]
[421728933,1778071847000,-210.183774,0.00041096,120]
[421728966,1778071847000,-809.0,0.00041096,60]
[421728912,1778071847000,-233.209878,0.00041096,120]
[421728911,1778071847000,-233.209878,0.00041096,120]
[421728910,1778071847000,-233.209878,0.00041096,120]
[421728915,1778071847000,-233.209878,0.00041096,120]
[421728914,1778071847000,-233.209878,0.00041096,120]
[421728916,1778071847000,-233.209878,0.00041096,120]
[421728918,1778071847000,-233.209878,0.00041096,120]
[421728924,1778071847000,-233.209878,0.00041096,120]
[421728927,1778071847000,-233.209869,0.00041096,120]
[421728923,1778071847000,-233.209878,0.00041096,120]
[421728920,1778071847000,-233.209878,0.00041096,120]
[421728919,1778071847000,-233.209878,0.00041096,120]
[421728917,1778071847000,-233.209878,0.00041096,120]
[421728925,1778071847000,-233.209878,0.00041096,120]
[421728921,1778071847000,-233.209878,0.00041096,120]
[421728922,1778071847000,-233.209878,0.00041096,120]
[421728926,1778071847000,-233.209878,0.00041096,120]
[421728940,1778071847000,-210.183774,0.00041096,120]
[421728929,1778071847000,-151.0,0.00041096,120]
[421728939,1778071847000,-210.183774,0.00041096,120]
[421728930,1778071847000,-151.0,0.00041096,120]
[421728936,1778071847000,-210.183774,0.00041096,120]
[421728937,1778071847000,-210.183774,0.00041096,120]
[421728934,1778071847000,-210.183774,0.00041096,120]
[421728931,1778071847000,-199.274076,0.00041096,120]
[421728935,1778071847000,-210.183774,0.00041096,120]
[421728938,1778071847000,-210.183774,0.00041096,120]
[421728969,1778071847000,-809.0,0.00041096,60]
[421728948,1778071847000,-210.183774,0.00041096,120]
[421728975,1778071847000,-809.0,0.00041096,60]
[421728997,1778071847000,-240.55651552,0.00041133,120]
[421728998,1778071847000,-656.73924934,0.00041147,2]
[421728999,1778071847000,-690.88,0.00041147,120]
[421729005,1778071847000,-626.86897664,0.00041183,2]
[421729006,1778071847000,-587.85069359,0.00041183,2]
[421729007,1778071847000,-1149.39094359,0.00041188,2]
[421729009,1778071847000,-2500.0,0.000412,120]
[421729008,1778071847000,-630.78690775,0.00041191,2]
[421729012,1778071847000,-33024.3484344,0.00041209,70]
[421729011,1778071847000,-2500.0,0.000412,120]
[421729010,1778071847000,-50000.0,0.000412,120]
[421729014,1778071847000,-13426.47188897,0.00041234,31]
[421729015,1778071847000,-690.88,0.00041247,120]
[421729013,1778071847000,-310.0,0.00041214,90]
[421729016,1778071847000,-250.0,0.00041275,110]
[421729023,1778071847000,-152.0,0.00041322,7]
[421729022,1778071847000,-200.0,0.00041318,2]
[421729025,1778071847000,-690.88,0.00041347,120]
[421729019,1778071847000,-587.85069359,0.00041283,2]
[421729018,1778071847000,-626.86897664,0.00041283,2]
[421729026,1778071847000,-1581.0,0.00041353,11]
[421729020,1778071847000,-1149.39094359,0.00041288,2]
[421729017,1778071847000,-1094.65804152,0.0004128,2]
[421729024,1778071847000,-151.59,0.0004134,2]
[421729028,1778071847000,-161.96,0.00041362,120]
[421729027,1778071847000,-1581.0,0.00041353,11]
[421728970,1778071847000,-809.0,0.00041096,60]
[421729000,1778071847000,-555.32469788,0.00041166,28]
[421729002,1778071847000,-717.45,0.00041178,60]
[421729021,1778071847000,-630.78690775,0.00041291,2]
[421729001,1778071847000,-50000.0,0.00041178,60]
[421728974,1778071847000,-809.0,0.00041096,60]
[421729004,1778071847000,-1094.65804152,0.0004118,2]
[421728971,1778071847000,-809.0,0.00041096,60]
[421728972,1778071847000,-809.0,0.00041096,60]
[421728973,1778071847000,-809.0,0.00041096,60]
[421728977,1778071847000,-809.0,0.00041096,60]
[421728976,1778071847000,-809.0,0.00041096,60]
[421728978,1778071847000,-809.0,0.00041096,60]
[421728980,1778071847000,-809.0,0.00041096,60]
[421728991,1778071847000,-151.0,0.000411,120]
[421728981,1778071847000,-809.0,0.00041096,60]
[421728979,1778071847000,-809.0,0.00041096,60]
[421728988,1778071847000,-809.0,0.00041096,60]
[421728967,1778071847000,-809.0,0.00041096,60]